bitfinex-derivatives/quotes_ETHF0:USTF0_20230105
["timestamp","ask_amount","ask_price","bid_price","bid_amount"]
[1672950421968,2.98711314,1252.6,1252.5,4.89265439]
[1672950423124,2.98711314,1252.6,1252.5,6.68836266]
[1672950425116,2.98711314,1252.7,1252.5,4.89265439]
[1672950425435,5.48711314,1252.7,1252.6,5.00264947]
[1672950427114,5.48711314,1252.7,1252.6,3.2078]
[1672950427332,5.48711314,1252.7,1252.6,5.00264947]
[1672950428173,2.98711314,1252.7,1252.6,5.00264947]
[1672950428699,2.98711314,1252.7,1252.6,3.2078]
[1672950429535,2.98711314,1252.7,1252.6,5.00264947]
[1672950430904,2.98711314,1252.7,1252.6,3.2078]
[1672950434378,2.98711314,1252.7,1252.5,4.29484947]
[1672950434580,2.98711314,1252.7,1252.6,3.2078]
[1672950436997,6.08549005,1252.8,1252.6,3.2078]
[1672950437317,6.08549005,1252.8,1252.5,4.29484947]
[1672950437318,9.29329005,1252.8,1252.5,2.5]
[1672950437524,2.98265834,1252.6,1252.5,2.5]
[1672950439846,2.98265834,1252.6,1252.5,4.29484947]
[1672950443305,2.98265834,1252.6,1252.5,7.50264947]
[1672950443627,2.98265834,1252.6,1252.5,4.29484947]
[1672950444371,2.98265834,1252.6,1252.5,7.50264947]
[1672950445097,2.98265834,1252.6,1252.5,4.29484947]
[1672950445405,2.98265834,1252.6,1252.5,7.50264947]
[1672950445827,2.5,1252.6,1252.5,7.50264947]
[1672950446247,2.98265834,1252.7,1252.5,7.50264947]
[1672950446671,2.98265834,1252.6,1252.5,7.50264947]
[1672950447094,2.98265834,1252.6,1252.5,4.29484947]
[1672950447299,2.98265834,1252.6,1252.5,7.50264947]
[1672950455400,2.98615974,1252.6,1252.5,7.50264947]
[1672950455599,2.5,1252.6,1252.5,7.50264947]
[1672950457181,3.58549005,1252.7,1252.5,7.50264947]
[1672950457710,2.5,1252.6,1252.5,7.50264947]
[1672950461282,2.5,1252.6,1252.5,4.29484947]
[1672950461915,3.58549005,1252.7,1252.5,4.29484947]
[1672950462544,2.98674469,1252.6,1252.5,4.29484947]
[1672950462749,5.48674469,1252.6,1252.5,4.29484947]
[1672950464331,2.5,1252.6,1252.5,4.29484947]
[1672950464542,5.48674723,1252.6,1252.5,4.29484947]
[1672950464855,3.58549005,1252.7,1252.5,4.29484947]
[1672950465058,5.48668806,1252.6,1252.5,4.29484947]
[1672950465379,2.5,1252.6,1252.5,4.29484947]
[1672950466321,2.5,1252.6,1252.5,7.50264947]
[1672950467064,3.58549005,1252.7,1252.5,7.50264947]
[1672950467377,2.5,1252.6,1252.5,7.50264947]
[1672950468114,3.58549005,1252.7,1252.5,7.50264947]
[1672950468741,3.58549005,1252.7,1252.5,8.69973355]
[1672950468952,3.58549005,1252.7,1252.6,1.19708408]
[1672950470952,3.58549005,1252.7,1252.5,8.69973355]
[1672950471164,3.58549005,1252.7,1252.6,1.19708408]
[1672950480507,3.58549005,1252.7,1252.6,2.99193355]
[1672950480822,3.58549005,1252.8,1252.6,1.79484947]
[1672950481032,3.58549005,1252.8,1252.7,4.40521279]
[1672950481347,3.58549005,1252.8,1252.7,8.70006226]
[1672950481560,3.58549005,1252.9,1252.7,7.50264947]
[1672950481767,3.58549005,1252.9,1252.8,2.69730608]
[1672950482501,6.08549005,1252.9,1252.8,2.69730608]
[1672950482717,6.08549005,1252.9,1252.8,1.19730608]
[1672950483135,6.08549005,1252.9,1252.7,8.69995555]
[1672950483559,6.08549005,1252.9,1252.7,6.90510608]
[1672950483975,6.08549005,1252.9,1252.7,8.69995555]
[1672950485554,2.98564303,1252.8,1252.7,6.90510608]
[1672950485867,5.48564303,1252.8,1252.7,6.90510608]
[1672950486602,2.98564303,1252.8,1252.7,8.69995555]
[1672950486814,2.98564303,1252.8,1252.7,5.49215555]
[1672950488708,2.98564303,1252.8,1252.7,8.69995555]
[1672950489547,2.98564303,1252.8,1252.7,6.90510608]
[1672950490071,2.98564303,1252.8,1252.7,8.69995555]
[1672950491121,5.48564303,1252.9,1252.7,8.69995555]
[1672950491332,5.48564303,1252.9,1252.8,2.5]
[1672950493227,5.48564303,1252.9,1252.7,6.90510608]
[1672950493438,2.98564303,1252.8,1252.7,6.90510608]
[1672950495531,2.98564303,1252.8,1252.7,3.69730608]
[1672950495746,2.98564303,1252.8,1252.7,6.90510608]
[1672950496368,5.48564303,1252.9,1252.7,6.90510608]
[1672950499743,2.98564303,1252.8,1252.7,6.90510608]
[1672950499958,5.48564303,1252.9,1252.7,6.90510608]
[1672950502897,5.48564303,1252.9,1252.7,3.69730608]
[1672950503111,5.48564303,1252.9,1252.7,6.90510608]
[1672950506791,2.98564303,1252.8,1252.7,6.90510608]
[1672950506989,2.98564303,1252.8,1252.7,4.40510608]
[1672950507412,2.98564303,1252.8,1252.7,3.2078]
[1672950508354,2.98564303,1252.8,1252.6,13.47615555]
[1672950508568,2.98564303,1252.8,1252.6,16.68395555]
[1672950509931,2.98564303,1252.8,1252.6,13.47615555]
[1672950510246,2.98564303,1252.8,1252.6,16.68395555]
[1672950511094,2.98564303,1252.8,1252.7,1.19730608]
[1672950511303,2.98564303,1252.8,1252.7,3.69730608]
[1672950515725,2.98564303,1252.8,1252.7,6.90510608]
[1672950518769,2.98564303,1252.8,1252.7,5.7078]
[1672950519296,2.98564303,1252.8,1252.7,5.49122967]
[1672950519504,6.08549005,1252.9,1252.7,8.69902967]
[1672950521507,6.08549005,1252.9,1252.7,8.69266223]
[1672950521708,6.08549005,1252.9,1252.7,5.70143256]
[1672950523081,6.08549005,1252.9,1252.8,3.2078]
[1672950523292,3.58549005,1252.9,1252.8,3.2078]
[1672950524344,3.58549005,1252.9,1252.7,2.49363256]
[1672950524555,3.58549005,1252.9,1252.8,3.2078]
[1672950525396,3.58549005,1252.9,1252.7,2.49363256]
[1672950525600,3.58549005,1252.9,1252.8,3.2078]
[1672950526235,3.58549005,1252.9,1252.7,2.49363256]
[1672950526445,3.58549005,1252.9,1252.8,3.2078]
[1672950531486,3.58549005,1252.9,1252.7,2.49363256]
[1672950531700,3.58549005,1252.9,1252.8,3.2078]
[1672950532331,3.58549005,1252.9,1252.8,5.00288948]
[1672950532543,6.08549005,1253.0,1252.8,6.1996158]
[1672950535698,6.08549005,1253.0,1252.8,2.9918158]
[1672950537380,6.08549005,1253.0,1252.8,1.19672632]
[1672950537792,6.08549005,1253.0,1252.8,2.9918158]
[1672950538537,6.08549005,1253.0,1252.8,1.19672632]
[1672950538735,10.26698679,1253.0,1252.8,1.19672632]
[1672950538946,6.08549005,1253.0,1252.8,1.19672632]
[1672950539584,6.08549005,1253.0,1252.8,4.40452632]
[1672950540527,10.26698679,1253.0,1252.8,4.40452632]
[1672950540945,6.08549005,1253.0,1252.8,4.40452632]
[1672950541790,6.08549005,1253.0,1252.8,1.19672632]
[1672950541998,6.08549005,1253.0,1252.8,4.40452632]
[1672950542207,10.26698679,1253.0,1252.8,4.40452632]
[1672950542525,6.08549005,1253.0,1252.8,4.40452632]
[1672950543155,6.08549005,1253.0,1252.8,6.1996158]
[1672950548409,6.08549005,1253.0,1252.8,4.40452632]
[1672950548724,10.26698679,1253.0,1252.8,4.40452632]
[1672950548921,10.26698679,1253.0,1252.8,1.19672632]
[1672950552090,3.58549005,1252.9,1252.8,1.19672632]
[1672950552298,10.26698679,1253.0,1252.8,1.19672632]
[1672950552825,10.26698679,1253.0,1252.8,4.40452632]
[1672950553454,3.58549005,1252.9,1252.8,4.40452632]
[1672950555977,3.58549005,1252.9,1252.8,6.1996158]
[1672950556922,10.26698679,1253.0,1252.8,6.1996158]
[1672950557972,6.08549005,1253.0,1252.9,1.19672632]
[1672950558183,6.08549005,1253.0,1252.9,3.69672632]
[1672950561340,6.08549005,1253.0,1252.9,1.19672632]
[1672950561972,6.08549005,1253.0,1252.9,3.69672632]
[1672950562709,6.08549005,1253.0,1252.9,1.19672632]
[1672950563444,6.08549005,1253.0,1252.9,3.69672632]
[1672950563655,6.08549005,1253.0,1252.9,1.19672632]
[1672950571121,6.08549005,1253.0,1252.8,6.1996158]
[1672950571327,2.5,1252.9,1252.8,6.1996158]
[1672950572377,2.5,1252.9,1252.8,4.40452632]
[1672950572582,6.08549005,1252.9,1252.8,4.40452632]
[1672950573952,2.5,1252.9,1252.8,6.1996158]
[1672950577948,6.08549005,1252.9,1252.8,6.1996158]
[1672950579210,6.08549005,1252.9,1252.8,2.9918158]
[1672950580888,6.08549005,1252.9,1252.8,1.19672632]
[1672950582679,2.5,1252.9,1252.8,2.9918158]
[1672950584146,10.26698679,1253.0,1252.8,2.9918158]
[1672950584465,3.58549005,1252.9,1252.8,2.9918158]
[1672950585093,3.58549005,1252.9,1252.8,1.19672632]
[1672950586558,3.58549005,1252.9,1252.7,6.1996158]
[1672950586765,2.5,1252.8,1252.7,6.1996158]
[1672950589081,2.5,1252.8,1252.7,6.19981245]
[1672950591395,2.5,1252.8,1252.7,2.99201245]
[1672950592239,2.5,1252.8,1252.7,1.19692297]
[1672950592447,2.5,1252.8,1252.7,2.99201245]
[1672950594028,2.5,1252.8,1252.7,1.19692297]
[1672950594761,2.5,1252.8,1252.7,2.99201245]
[1672950596336,2.5,1252.8,1252.7,1.19692297]
[1672950596538,0.00412685,1252.7,1252.6,6.19981245]
[1672950596747,2.99057757,1252.7,1252.6,6.19981245]
[1672950596969,0.00412685,1252.7,1252.6,6.19981245]
[1672950597173,0.00412685,1252.7,1252.6,6.90472297]
[1672950597484,0.00412685,1252.7,1252.6,8.69981245]
[1672950597695,0.00412685,1252.7,1252.6,6.90472297]
[1672950597915,2.98965421,1252.7,1252.6,6.90472297]
[1672950598115,2.98965421,1252.7,1252.6,4.40472297]
[1672950600847,2.98965421,1252.7,1252.6,6.19981245]
[1672950602636,2.98965421,1252.7,1252.6,4.40194746]
[1672950603057,2.98965421,1252.7,1252.6,6.19703694]
[1672950604422,2.98965421,1252.7,1252.6,2.99201245]
[1672950605996,2.98965421,1252.7,1252.6,1.19692297]
[1672950608526,2.98965421,1252.7,1252.6,2.99201245]
[1672950610203,2.98965421,1252.7,1252.6,1.19692297]
[1672950623346,2.98965421,1252.7,1252.6,2.99201245]
[1672950624080,0.00412685,1252.7,1252.6,2.99201245]
[1672950624285,0.00412685,1252.7,1252.6,5.49201245]
[1672950624708,0.00412685,1252.7,1252.6,3.69692297]
[1672950626596,0.00412685,1252.7,1252.6,5.49201245]
[1672950627653,0.00412685,1252.7,1252.6,3.69692297]
[1672950628282,0.00412685,1252.7,1252.6,5.49201245]
[1672950636175,0.00412685,1252.7,1252.6,4.29508948]
[1672950638171,0.00412685,1252.7,1252.6,5.49268082]
[1672950638491,0.00412685,1252.7,1252.6,4.29508948]
[1672950639216,0.00412685,1252.7,1252.6,5.49268037]
[1672950639431,0.00412685,1252.7,1252.6,4.29508948]
[1672950640272,0.00412685,1252.7,1252.6,5.49268491]
[1672950640587,0.00412685,1252.7,1252.6,4.29508948]
[1672950641121,0.00412685,1252.7,1252.6,5.49268777]
[1672950641543,3.5896169,1252.7,1252.6,5.49268777]
[1672950641753,6.0896169,1252.7,1252.6,2.99268777]
[1672950642699,3.5896169,1252.7,1252.6,1.19759829]
[1672950642904,0.00412685,1252.7,1252.6,4.29508948]
[1672950643220,2.99153258,1252.7,1252.6,6.90688523]
[1672950643843,0.00412685,1252.7,1252.6,6.90688523]
[1672950644480,0.00412685,1252.7,1252.6,9.30063522]
[1672950645531,0.00412685,1252.7,1252.6,6.30881943]
[1672950646480,0.00412685,1252.7,1252.6,9.51661943]
[1672950648684,0.00412685,1252.7,1252.6,8.10154999]
[1672950649518,0.00412685,1252.7,1252.6,4.89374999]
[1672950649734,0.00412685,1252.7,1252.6,8.10154999]
[1672950650682,2.98740573,1252.8,1252.7,0.00161428]
[1672950650881,2.98740573,1252.8,1252.7,5.49220958]
[1672950651301,2.98740573,1252.8,1252.7,4.29597146]
[1672950651721,5.48740573,1252.8,1252.7,4.29597146]
[1672950651941,2.5,1252.8,1252.7,4.29597146]
[1672950652146,5.48740573,1252.8,1252.7,4.29597146]
[1672950653109,2.98740573,1252.8,1252.7,7.50377146]
[1672950653734,2.98740573,1252.8,1252.7,8.69967805]
[1672950654689,2.98740573,1252.8,1252.7,7.50377146]
[1672950655524,2.98740573,1252.9,1252.7,7.50377146]
[1672950655836,2.5,1252.8,1252.7,7.50377146]
[1672950657310,2.98740573,1252.9,1252.7,7.50377146]
[1672950657521,2.98740573,1252.9,1252.8,1.19563039]
[1672950657734,2.98740573,1252.9,1252.8,3.69563039]
[1672950658258,2.98740573,1252.9,1252.8,2.5]
[1672950658574,2.98740573,1252.9,1252.8,3.69563039]
[1672950660353,2.98740573,1252.9,1252.8,1.19563039]
[1672950661095,2.98740573,1252.9,1252.7,8.69940185]
[1672950661620,2.98740573,1252.8,1252.7,8.69940185]
[1672950662039,2.98740573,1252.9,1252.7,8.69940185]
[1672950662249,2.5,1252.8,1252.7,8.69940185]
[1672950662672,2.5,1252.8,1252.7,7.50377146]
[1672950663085,2.5,1252.8,1252.7,8.69911318]
[1672950664668,2.98740573,1252.9,1252.7,5.49131318]
[1672950664877,2.98740573,1252.9,1252.7,8.69911318]
[1672950665093,2.98740573,1252.9,1252.8,3.2078]
[1672950665303,2.98740573,1252.9,1252.8,5.7078]
[1672950665617,2.98740573,1252.9,1252.8,3.2078]
[1672950669715,2.98740573,1252.9,1252.8,4.40314172]
[1672950670769,2.98740573,1252.9,1252.8,3.2078]
[1672950671077,6.08549005,1253.0,1252.8,3.2078]
[1672950672761,6.08549005,1253.0,1252.7,5.49131318]
[1672950672970,2.98275168,1252.8,1252.7,6.19911318]
[1672950674873,2.98275168,1252.9,1252.7,5.00377146]
[1672950675086,5.48275168,1252.8,1252.7,6.19943651]
[1672950675716,5.48275168,1252.8,1252.7,5.00377146]
[1672950675928,2.5,1252.8,1252.7,5.00377146]
[1672950676343,2.5,1252.8,1252.7,1.79597146]
[1672950676559,2.5,1252.8,1252.7,7.50377146]
[1672950677086,2.5,1252.8,1252.7,5.00377146]
[1672950677290,2.5,1252.8,1252.7,7.50377146]
[1672950677616,2.98275168,1252.9,1252.7,9.89752145]
[1672950677813,2.98275168,1252.9,1252.8,1.19609694]
[1672950678132,2.98275168,1252.9,1252.8,3.69609694]
[1672950678970,2.98275168,1252.9,1252.8,5.49045412]
[1672950680023,2.98275168,1252.9,1252.8,2.99045412]
[1672950680342,2.98275168,1252.9,1252.8,6.19825412]
[1672950680652,2.98527901,1252.9,1252.8,6.19825412]
[1672950681286,6.08549005,1253.0,1252.8,4.40389694]
[1672950681597,6.08549005,1253.0,1252.8,6.19825412]
[1672950683286,6.08549005,1253.0,1252.9,1.19609694]
[1672950683486,6.08549005,1253.0,1252.9,3.69609694]
[1672950685488,6.08549005,1253.0,1252.9,1.19609694]
[1672950686858,6.08549005,1253.0,1252.9,3.69609694]
[1672950687069,7.76698679,1253.1,1252.9,5.49045412]
[1672950687384,6.08549005,1253.1,1253.0,4.40389694]
[1672950687594,2.5,1253.1,1253.0,4.40389694]
[1672950690218,2.5,1253.1,1253.0,3.2078]
[1672950690429,6.08549005,1253.1,1253.0,3.2078]
[1672950691160,2.5,1253.1,1253.0,3.2078]
[1672950691367,6.08549005,1253.1,1253.0,3.2078]
[1672950691581,2.5,1253.1,1253.0,3.2078]
[1672950692001,2.5,1253.1,1252.9,5.49045412]
[1672950692219,2.98449421,1253.0,1252.9,8.69825412]
[1672950692849,2.98449421,1253.0,1252.9,7.50215718]
[1672950693272,2.98449421,1253.0,1252.9,8.69809475]
[1672950698110,2.98449421,1253.0,1252.9,6.19809475]
[1672950698530,2.98449421,1253.0,1252.9,4.40373757]
[1672950698734,2.98449421,1253.0,1252.9,6.19809475]
[1672950699052,2.98449421,1253.0,1252.9,4.40373757]
[1672950699258,2.98449421,1253.0,1252.9,6.19809475]
[1672950699579,2.98449421,1253.0,1252.9,4.40373757]
[1672950700521,2.98449421,1253.0,1252.9,6.90373757]
[1672950700730,2.98449421,1253.0,1252.9,8.69809475]
[1672950701257,2.98449421,1253.0,1252.9,4.40373757]
[1672950701574,2.98449421,1253.0,1252.9,6.19809475]
[1672950703355,2.98449421,1253.0,1252.9,4.40373757]
[1672950704821,2.98315031,1253.0,1252.9,4.40373757]
[1672950705031,6.08549005,1253.1,1252.9,4.40373757]
[1672950705252,6.08549005,1253.1,1252.9,1.19593757]
[1672950708402,6.08549005,1253.1,1252.9,3.69593757]
[1672950708718,2.98373514,1253.0,1252.9,3.69593757]
[1672950709343,2.98373514,1253.0,1252.9,1.19593757]
[1672950710713,2.98373514,1253.0,1252.9,3.69593757]
[1672950711452,2.98373514,1253.0,1252.9,6.90373757]
[1672950711661,2.98373514,1253.0,1252.9,4.40373757]
[1672950711873,2.98373514,1253.0,1252.9,6.90373757]
[1672950712390,2.98373514,1253.0,1252.9,4.40373757]
[1672950713660,2.98373514,1253.0,1252.9,1.19593757]
[1672950713869,2.98373514,1253.0,1252.9,4.40373757]
[1672950714182,6.08549005,1253.1,1252.9,4.40373757]
[1672950717545,10.26698679,1253.1,1252.9,4.40373757]
[1672950718702,10.26698679,1253.1,1252.9,1.19593757]
[1672950720062,10.26698679,1253.1,1252.9,4.40373757]
[1672950721637,6.08549005,1253.1,1252.9,5.00215718]
[1672950721848,6.08549005,1253.1,1253.0,1.19663091]
[1672950722062,6.08549005,1253.1,1253.0,3.69663091]
[1672950722373,3.58549005,1253.1,1253.0,5.49098809]
[1672950722595,5.48605461,1253.1,1253.0,6.30833953]
[1672950723008,2.98605461,1253.1,1253.0,6.30833953]
[1672950723957,5.48605461,1253.1,1253.0,6.68866892]
[1672950724477,5.48605461,1253.1,1253.0,4.29491893]
[1672950724795,2.98605461,1253.1,1253.0,4.29491893]
[1672950725012,2.98605461,1253.1,1253.0,4.89374999]
[1672950725219,2.98605461,1253.1,1253.0,4.88775826]
[1672950725430,2.98605461,1253.1,1253.0,8.09555826]
[1672950725743,2.98605461,1253.1,1253.0,9.88975746]
[1672950726168,2.98605461,1253.1,1253.0,7.49600747]
[1672950727109,5.48605461,1253.2,1253.0,9.88975746]
[1672950727310,5.48605461,1253.2,1253.1,1.1957527]
[1672950728059,2.5,1253.2,1253.1,1.1957527]
[1672950728579,5.48384604,1253.2,1253.1,1.1957527]
[1672950728792,2.5,1253.2,1253.1,1.1957527]
[1672950729108,2.5,1253.2,1253.0,8.69176017]
[1672950729315,2.98378605,1253.1,1253.0,8.69176017]
[1672950730266,2.98034216,1253.1,1253.0,8.69176017]
[1672950732156,2.98034216,1253.1,1253.0,6.1977519]
[1672950732576,2.98034216,1253.1,1253.0,4.4035527]
[1672950735106,2.98034216,1253.1,1253.0,1.1957527]
[1672950735317,2.98034216,1253.1,1253.0,4.4035527]
[1672950736576,6.08549005,1253.2,1253.0,3.2078]
[1672950737729,2.5,1253.2,1253.0,4.4035527]
[1672950739207,6.08549005,1253.2,1253.0,4.4035527]
[1672950739410,6.08549005,1253.2,1253.0,1.1957527]
[1672950739732,2.5,1253.2,1253.0,4.4035527]
[1672950740579,2.5,1253.2,1252.9,5.4899519]
[1672950740775,2.5,1253.2,1253.0,1.1957527]
[1672950741101,6.08549005,1253.2,1253.1,2.5]
[1672950741509,6.08549005,1253.2,1253.0,3.6957527]
[1672950742678,6.08549005,1253.2,1253.0,1.1957527]
[1672950743199,6.08549005,1253.2,1253.0,4.4035527]
[1672950743409,2.5,1253.2,1253.0,6.9035527]
[1672950744245,2.5,1253.2,1253.0,3.6957527]
[1672950744564,2.5,1253.2,1253.0,6.9035527]
[1672950745926,6.08549005,1253.2,1253.0,6.9035527]
[1672950749607,6.08549005,1253.2,1253.0,3.6957527]
[1672950749819,6.08549005,1253.2,1253.0,6.9035527]
[1672950750239,2.98377761,1253.1,1253.0,6.9035527]
[1672950750652,2.98377761,1253.1,1253.0,4.4035527]
[1672950752333,2.98377761,1253.1,1253.0,6.1977519]
[1672950753391,2.98377761,1253.1,1253.0,2.9899519]
[1672950753811,2.98377761,1253.1,1253.0,6.1977519]
[1672950754545,2.98377761,1253.1,1253.0,4.4035527]
[1672950754762,2.98377761,1253.1,1253.0,6.1977519]
[1672950756856,2.98377761,1253.1,1253.0,5.0019992]
[1672950758330,2.98377761,1253.1,1253.0,6.19820538]
[1672950758651,2.98377761,1253.1,1253.0,6.19824286]
[1672950758965,2.98377761,1253.1,1253.0,5.0019992]
[1672950759585,2.98377761,1253.1,1253.0,7.39574919]
[1672950760539,2.98377761,1253.1,1253.0,4.18794919]
[1672950760741,2.98377761,1253.1,1253.0,7.39574919]
[1672950760951,2.98377761,1253.1,1253.0,5.60154999]
[1672950762745,2.98377761,1253.1,1253.0,7.39665399]
[1672950764005,2.98377761,1253.1,1253.0,5.002904]
[1672950764321,2.98377761,1253.1,1253.0,7.39665399]
[1672950765049,2.98377761,1253.1,1253.0,5.60154999]
[1672950765259,2.98377761,1253.1,1253.0,7.01615409]
[1672950767680,2.98377761,1253.2,1253.1,2.5]
[1672950767885,2.98377761,1253.2,1253.1,4.89313411]
[1672950768092,2.98377761,1253.3,1253.1,6.30762193]
[1672950768307,2.98377761,1253.3,1253.2,5.00254154]
[1672950768518,5.48377761,1253.3,1253.2,7.50254154]
[1672950768731,5.48377761,1253.3,1253.2,8.69831999]
[1672950768940,2.98377761,1253.3,1253.2,8.69831999]
[1672950769779,2.98377761,1253.3,1253.2,7.50254154]
[1672950770096,2.98377761,1253.3,1253.2,9.89567565]
[1672950770306,5.48377761,1253.4,1253.2,7.50254154]
[1672950770511,2.98377761,1253.4,1253.3,1.19507068]
[1672950770931,2.98377761,1253.4,1253.3,2.98981222]
[1672950771255,2.98377761,1253.4,1253.3,5.48981222]
[1672950772300,2.98377761,1253.4,1253.3,3.69507068]
[1672950774196,2.98377761,1253.4,1253.3,11.67907068]
[1672950774405,2.98377761,1253.4,1253.3,3.69507068]
[1672950774613,2.98377761,1253.4,1253.3,2.5]
[1672950775767,2.98377761,1253.4,1253.2,16.68161222]
[1672950775978,2.98377761,1253.4,1253.2,14.88687068]
[1672950776190,2.98377761,1253.4,1253.2,6.90287068]
[1672950776400,5.48377761,1253.3,1253.2,3.2078]
[1672950780180,2.98377761,1253.3,1253.2,3.2078]
[1672950780395,2.98377761,1253.4,1253.2,4.40287068]
[1672950780598,2.5,1253.3,1253.2,4.40287068]
[1672950781553,2.98377761,1253.4,1253.2,4.40287068]
[1672950781767,2.98377761,1253.4,1253.3,2.5]
[1672950787130,2.98377761,1253.4,1253.2,6.90287068]
[1672950789863,2.98377761,1253.4,1253.2,8.69761222]
[1672950790812,2.98377761,1253.4,1253.3,2.5]
[1672950792594,2.98377761,1253.4,1253.3,3.69507068]
[1672950792807,2.98377761,1253.4,1253.3,5.7078]
[1672950795226,25.42048679,1253.7,1253.3,16.68161222]
[1672950795437,2.5,1253.6,1253.5,3.2078]
[1672950799852,2.5,1253.7,1253.5,3.2078]
[1672950800384,2.5,1253.7,1253.6,2.5]
[1672950803415,6.08549005,1253.8,1253.6,2.5]
[1672950803637,6.08549005,1253.8,1253.7,3.2078]
[1672950803849,2.5,1253.8,1253.7,3.2078]
[1672950805640,6.08549005,1253.8,1253.7,3.2078]
[1672950805840,2.5,1253.8,1253.7,3.2078]
[1672950806373,6.08549005,1253.8,1253.7,3.2078]
[1672950807103,6.08549005,1253.8,1253.5,4.7078]
[1672950807314,10.26698679,1253.8,1253.5,4.7078]
[1672950807524,6.08549005,1253.8,1253.5,4.7078]
[1672950809004,6.08549005,1253.8,1253.5,4.70311314]
[1672950810267,6.08549005,1253.8,1253.5,1.49531314]
[1672950810679,6.08549005,1253.8,1253.6,3.2078]
[1672950813417,2.5,1253.8,1253.6,3.2078]
[1672950813621,6.08549005,1253.8,1253.6,3.2078]
[1672950813833,6.08549005,1253.8,1253.5,2.69038382]
[1672950814044,2.5,1253.8,1253.6,3.2078]
[1672950814254,2.5,1253.8,1253.7,2.5]
[1672950814981,3.58549005,1253.9,1253.7,2.5]
[1672950815192,3.58549005,1254.0,1253.8,3.2078]
[1672950815399,2.5,1253.9,1253.8,3.2078]
[1672950815822,2.5,1254.0,1253.8,3.2078]
[1672950816034,2.5,1254.0,1253.9,2.5]
[1672950816669,2.5,1254.0,1253.8,3.2078]
[1672950816883,6.08549005,1254.0,1253.8,3.2078]
[1672950821830,3.58549005,1254.1,1253.9,2.5]
[1672950822036,25.04889674,1254.2,1253.9,2.5]
[1672950822037,7.66309005,1254.2,1253.9,2.5]
[1672950822358,2.5,1254.1,1254.0,3.2078]
[1672950822975,2.5,1254.1,1253.9,2.5]
[1672950825086,2.5,1254.1,1254.0,3.2078]
[1672950827398,2.5,1254.1,1253.8,11.1918]
[1672950827615,2.5,1254.1,1253.8,3.2078]
[1672950827924,6.08549005,1254.1,1253.8,3.2078]
[1672950828247,9.29329005,1254.1,1253.9,2.5]
[1672950829930,6.08549005,1254.1,1253.7,10.484]
[1672950830138,9.29329005,1254.1,1253.7,13.6918]
[1672950830873,13.47478679,1254.1,1253.7,13.6918]
[1672950831190,9.29329005,1254.1,1253.7,13.6918]
[1672950832126,13.47478679,1254.1,1253.7,13.6918]
[1672950832762,3.58549005,1254.0,1253.7,13.6918]
[1672950832973,2.5,1253.9,1253.7,13.6918]
[1672950833395,2.5,1253.9,1253.7,14.88687068]
[1672950833606,2.5,1253.9,1253.7,13.6918]
[1672950834130,2.5,1253.9,1253.7,14.88687068]
[1672950835078,2.5,1253.9,1253.7,11.67907068]
[1672950835281,2.5,1253.9,1253.7,14.88687068]
[1672950835493,2.5,1253.9,1253.7,13.6918]
[1672950838752,2.5,1253.9,1253.7,10.484]
[1672950838966,2.5,1253.9,1253.7,13.6918]
[1672950839173,2.5,1253.9,1253.7,10.484]
[1672950839487,2.5,1253.9,1253.7,13.6918]
[1672950842017,2.5,1253.9,1253.7,5.7078]
[1672950842228,2.5,1253.9,1253.7,3.2078]
[1672950842438,6.08549005,1253.9,1253.7,3.2078]
[1672950842645,2.5,1253.9,1253.7,3.2078]
[1672950845898,2.5,1253.9,1253.7,4.40287068]
[1672950846219,2.5,1253.9,1253.8,2.5]
[1672950847896,2.5,1253.9,1253.7,4.40287068]
[1672950848103,2.5,1253.9,1253.8,2.5]
[1672950848524,6.08549005,1254.1,1253.8,3.69507068]
[1672950849891,10.26698679,1254.1,1253.8,3.69507068]
[1672950850414,10.26698679,1254.1,1253.8,5.48981222]
[1672950850625,6.08549005,1254.1,1253.8,5.48981222]
[1672950852213,10.26698679,1254.1,1253.9,3.2078]
[1672950852424,10.26698679,1254.1,1254.0,2.5]
[1672950853685,6.08549005,1254.1,1253.9,3.2078]
[1672950854008,10.26698679,1254.1,1253.9,3.2078]
[1672950854211,10.26698679,1254.1,1253.9,4.40287068]
[1672950854421,3.58549005,1254.0,1253.9,3.2078]
[1672950854739,3.58549005,1254.0,1253.8,8.69761222]
[1672950855693,2.5,1253.9,1253.8,8.69761222]
[1672950856424,3.58549005,1254.0,1253.8,8.69761222]
[1672950856636,10.26698679,1254.1,1253.8,8.69761222]
[1672950856839,3.58549005,1254.0,1253.9,3.2078]
[1672950858947,3.58549005,1254.0,1253.8,8.69761222]
[1672950859261,2.5,1253.9,1253.8,8.69761222]
[1672950861359,2.5,1253.9,1253.8,6.90287068]
[1672950863469,2.5,1253.9,1253.7,2.98981222]
[1672950863680,6.08549005,1253.9,1253.6,8.69761222]
[1672950863886,10.26698679,1253.9,1253.6,8.69761222]
[1672950864205,6.08549005,1253.9,1253.7,1.19507068]
[1672950864730,6.08549005,1253.9,1253.6,8.69761222]
[1672950865042,2.5,1253.7,1253.6,6.90287068]
[1672950865262,2.5,1253.7,1253.6,4.40287068]
[1672950865565,2.5,1253.7,1253.6,6.90287068]
[1672950865775,2.5,1253.7,1253.6,8.69761222]
[1672950867666,2.5,1253.7,1253.6,6.19761222]
[1672950868199,2.5,1253.7,1253.6,6.90287068]
[1672950868513,2.5,1253.7,1253.6,8.69761222]
[1672950870086,2.5,1253.7,1253.6,2.98981222]
[1672950870293,2.5,1253.7,1253.6,1.19507068]
[1672950871145,2.5,1253.7,1253.6,3.69507068]
[1672950871345,2.5,1253.7,1253.6,5.48981222]
[1672950871766,10.26698679,1253.9,1253.6,3.69507068]
[1672950871976,6.08549005,1253.9,1253.6,3.69507068]
[1672950872710,10.26698679,1253.9,1253.6,3.69507068]
[1672950873232,2.5,1253.7,1253.6,3.69507068]
[1672950873442,2.5,1253.7,1253.6,1.19507068]
[1672950873872,2.5,1253.7,1253.6,3.69507068]
[1672950874291,2.5,1253.7,1253.6,1.19507068]
[1672950877023,2.5,1253.7,1253.5,6.19761222]
[1672950877235,2.5,1253.7,1253.5,8.69761222]
[1672950877857,2.5,1253.7,1253.6,2.5]
[1672950881649,2.5,1253.7,1253.5,3.69507068]
[1672950883334,2.5,1253.7,1253.5,5.48981222]
[1672950883857,2.5,1253.7,1253.5,3.69507068]
[1672950885232,2.5,1253.7,1253.5,1.19507068]
[1672950885443,2.5,1253.7,1253.4,8.69761222]
[1672950885758,5.7078,1253.7,1253.5,2.5]
[1672950886701,5.7078,1253.7,1253.5,3.69507068]
[1672950888914,2.5,1253.7,1253.5,3.69507068]